bitfinex-derivatives/quotes_BTCF0:USTF0_20250728
["timestamp","ask_amount","ask_price","bid_price","bid_amount"]
[1753697074002,0.97678398,119050.0,119040.0,0.2932803]
[1753697074711,0.97678398,119050.0,119040.0,0.8072136]
[1753697080814,0.97678398,119050.0,119040.0,0.4715303]
[1753697081523,1.31246728,119050.0,119040.0,0.4715303]
[1753697081714,1.31246728,119050.0,119040.0,0.4294503]
[1753697082207,1.31388728,119050.0,119040.0,0.4294503]
[1753697082409,0.98048398,119050.0,119040.0,0.4294503]
[1753697084714,1.31616728,119050.0,119040.0,0.4294503]
[1753697085407,1.37641241,119050.0,119040.0,0.4294503]
[1753697087417,1.37641241,119050.0,119040.0,0.40926859]
[1753697088617,1.37641241,119050.0,119040.0,0.33190859]
[1753697088915,1.29252564,119050.0,119040.0,0.58370512]
[1753697089101,1.29252564,119050.0,119040.0,0.63435512]
[1753697089716,1.29252564,119050.0,119040.0,0.66160512]
[1753697090411,1.23228051,119050.0,119040.0,0.66160512]
[1753697090614,1.23228051,119050.0,119040.0,0.40980859]
[1753697090810,1.23228051,119050.0,119040.0,0.66160512]
[1753697091615,1.23228051,119050.0,119040.0,0.40980859]
[1753697091913,1.23228051,119050.0,119040.0,0.66160512]
[1753697093414,1.29271103,119050.0,119040.0,0.66160512]
[1753697094615,1.23228051,119050.0,119040.0,0.66160512]
[1753697094918,1.23228051,119050.0,119040.0,0.70260512]
[1753697098920,1.29271103,119050.0,119040.0,0.70260512]
[1753697100509,1.29206103,119050.0,119040.0,0.70260512]
[1753697103024,1.0402645,119050.0,119040.0,0.70260512]
[1753697103321,1.30728502,119050.0,119040.0,0.70260512]
[1753697103520,1.23163051,119050.0,119040.0,0.95440165]
[1753697104028,1.30721075,119050.0,119040.0,0.95440165]
[1753697104535,1.30493075,119050.0,119040.0,0.95440165]
[1753697104932,1.33458255,119050.0,119040.0,0.95440165]
[1753697106030,1.22935051,119050.0,119040.0,0.97458336]
[1753697106230,0.97983398,119050.0,119040.0,0.97458336]
[1753697106437,1.08506602,119050.0,119040.0,0.97458336]
[1753697106637,1.33686255,119050.0,119040.0,0.97458336]
[1753697107235,2.33686255,119050.0,119040.0,0.97458336]
[1753697108344,2.08506602,119050.0,119040.0,0.97458336]
[1753697108740,2.33686255,119050.0,119040.0,0.97458336]
[1753697113445,2.23163051,119050.0,119040.0,0.97458336]
[1753697116749,2.23163051,119050.0,119040.0,0.72278683]
[1753697116940,2.23163051,119050.0,119040.0,0.4709903]
[1753697117141,2.23163051,119050.0,119040.0,0.72278683]
[1753697118750,2.30718279,119050.0,119040.0,0.72278683]
[1753697119352,2.23163051,119050.0,119040.0,0.72278683]
[1753697119853,2.29205999,119050.0,119040.0,0.72278683]
[1753697120852,2.29205999,119050.0,119040.0,0.68178683]
[1753697121552,2.29205999,119050.0,119040.0,0.72460683]
[1753697123454,2.29205999,119050.0,119040.0,0.54507683]
[1753697124655,2.29205999,119050.0,119040.0,0.62309683]
[1753697124849,2.29205999,119050.0,119040.0,0.65459683]
[1753697125255,2.29205999,119050.0,119040.0,0.72578683]
[1753697126457,2.23163051,119050.0,119040.0,0.72578683]
[1753697129559,2.30718279,119050.0,119040.0,0.97758336]
[1753697129749,1.13853418,119050.0,119040.0,0.97758336]
[1753697129957,1.76633418,119050.0,119040.0,1.22937989]
[1753697130957,1.76633418,119050.0,119040.0,0.97758336]
[1753697131561,1.76633418,119050.0,119040.0,1.65034336]
[1753697131756,1.80678418,119050.0,119040.0,1.65034336]
[1753697132559,1.97476398,119050.0,119040.0,1.65034336]
[1753697133463,1.80678418,119050.0,119040.0,1.65034336]
[1753697135171,1.97476388,119050.0,119040.0,1.65034336]
[1753697136069,1.80678418,119050.0,119040.0,1.65034336]
[1753697143776,1.97476398,119050.0,119040.0,1.65034336]
[1753697143972,1.97476398,119050.0,119040.0,0.97758336]
[1753697144172,1.97476398,119050.0,119040.0,0.2512821]
[1753697144173,2.47835704,119050.0,119040.0,0.2512821]
[1753697144372,2.28699834,119050.0,119040.0,0.2099921]
[1753697144772,2.28699834,119050.0,119040.0,0.2509221]
[1753697145579,2.03520181,119050.0,119040.0,0.50271863]
[1753697145774,2.28699834,119050.0,119040.0,0.50271863]
[1753697146481,2.28699834,119050.0,119040.0,0.2509221]
[1753697146780,2.3709516,119050.0,119040.0,0.2509221]
[1753697148881,2.03520181,119050.0,119040.0,0.58667189]
[1753697149480,2.3709516,119050.0,119040.0,0.2509221]
[1753697149681,2.03520181,119050.0,119040.0,0.2509221]
[1753697152283,2.3709516,119050.0,119040.0,0.2509221]
[1753697152484,2.31051377,119050.0,119040.0,0.1679939]
[1753697152684,2.31051377,119050.0,119030.0,0.1260029]
[1753697152685,0.2371939,119040.0,119030.0,0.2099995]
[1753697152894,0.6333149,119040.0,119030.0,0.2099995]
[1753697153084,0.6333149,119040.0,119030.0,0.2509295]
[1753697153281,0.57294369,119040.0,119030.0,0.2509295]
[1753697153590,0.64849597,119040.0,119030.0,0.2509295]
[1753697153783,0.64849597,119040.0,119030.0,0.2099995]
[1753697154192,0.64849597,119040.0,119030.0,0.2509295]
[1753697158794,0.31274618,119040.0,119030.0,0.2509295]
[1753697159293,0.64849597,119040.0,119030.0,0.2509295]
[1753697160696,0.64849597,119040.0,119030.0,0.3229595]
[1753697160889,0.31274618,119040.0,119030.0,0.3547995]
[1753697162494,0.2371939,119040.0,119030.0,0.3547995]
[1753697162892,0.57294369,119040.0,119030.0,0.3547995]
[1753697164292,0.2371939,119040.0,119030.0,0.3547995]
[1753697164592,0.57294369,119040.0,119030.0,0.3547995]
[1753697165901,0.57294369,119040.0,119030.0,0.4221795]
[1753697168504,0.63326246,119040.0,119030.0,0.4221795]
[1753697170493,0.63326246,119040.0,119030.0,0.3821895]
[1753697171498,0.63326246,119040.0,119030.0,0.4221795]
[1753697177003,0.80120115,119040.0,119030.0,0.67402374]
[1753697182303,0.74088238,119040.0,119030.0,0.67402374]
[1753697183302,0.81643466,119040.0,119030.0,0.67402374]
[1753697183504,0.81643466,119040.0,119030.0,0.4221795]
[1753697186608,0.74088238,119040.0,119030.0,0.4221795]
[1753697188812,0.74924143,119040.0,119030.0,0.4221795]
[1753697189109,0.74088238,119040.0,119030.0,0.4221795]
[1753697189307,0.74088238,119040.0,119030.0,0.65383982]
[1753697189808,0.80137101,119040.0,119030.0,0.40199558]
[1753697193309,0.74088238,119040.0,119030.0,0.40199558]
[1753697193507,0.81643466,119040.0,119030.0,0.40199558]
[1753697196115,0.74088238,119040.0,119030.0,0.40199558]
[1753697199219,1.74088238,119040.0,119030.0,0.40199558]
[1753697200611,1.74092238,119040.0,119030.0,0.40199558]
[1753697201123,1.74092238,119040.0,119030.0,0.65383982]
[1753697201710,1.74092238,119040.0,119030.0,0.40199558]
[1753697202724,1.84615442,119040.0,119030.0,0.40199558]
[1753697203721,1.74092238,119040.0,119030.0,0.40199558]
[1753697205224,1.80142989,119040.0,119030.0,0.04093]
[1753697205413,1.80142989,119040.0,119020.0,0.2520202]
[1753697205414,0.218948,119030.0,119020.0,0.2520202]
[1753697205617,1.46930648,119030.0,119020.0,0.2520202]
[1753697205814,1.46930648,119030.0,119010.0,0.170927]
[1753697206027,1.46932058,119020.0,119010.0,0.35766172]
[1753697206227,1.46932058,119020.0,119010.0,0.3390565]
[1753697206619,1.52982809,119020.0,119010.0,0.3390565]
[1753697206814,1.52982809,119020.0,119010.0,0.3802565]
[1753697207519,1.52982809,119020.0,119010.0,0.4193165]
[1753697207727,1.52982809,119020.0,119010.0,0.4203165]
[1753697208730,1.52982809,119020.0,119010.0,0.4213165]
[1753697209826,1.52982809,119020.0,119010.0,0.3801165]
[1753697210525,1.52982809,119020.0,119010.0,0.338108]
[1753697211225,1.46932058,119020.0,119010.0,0.338108]
[1753697212527,1.52982809,119020.0,119010.0,0.338108]
[1753697213526,1.52986809,119020.0,119010.0,0.338108]
[1753697214718,1.53825082,119020.0,119010.0,0.002]
[1753697214918,1.79009506,119020.0,119010.0,0.002]
[1753697215329,1.53825082,119020.0,119010.0,0.002]
[1753697215528,1.53825082,119020.0,119000.0,0.2528169]
[1753697215529,0.1680362,119010.0,119000.0,0.2528169]
[1753697215731,0.54549044,119010.0,119000.0,0.2528169]
[1753697216225,0.60599795,119010.0,119000.0,0.2071103]
[1753697216431,0.85784219,119010.0,119000.0,0.2071103]
[1753697216932,0.85784219,119010.0,119000.0,0.03906]
[1753697217133,0.85784219,119010.0,119000.0,0.2081104]
[1753697217729,0.85784219,119010.0,119000.0,0.04106]
[1753697219034,0.85784219,119010.0,119000.0,0.2091104]
[1753697220037,0.85784219,119010.0,119000.0,0.04106]
[1753697220634,0.85788219,119010.0,119000.0,0.04106]
[1753697220936,0.85788219,119010.0,119000.0,0.2091103]
[1753697221639,0.85788219,119010.0,119000.0,0.04106]
[1753697221941,0.79737468,119010.0,119000.0,0.04106]
[1753697222332,0.79737468,119010.0,119000.0,0.2091104]
[1753697223739,0.79737468,119010.0,119000.0,0.2548204]
[1753697224439,1.79737468,119010.0,119000.0,0.2548204]
[1753697224641,1.54553044,119010.0,119000.0,0.2851204]
[1753697225637,1.79737468,119010.0,119000.0,0.2851204]
[1753697229139,1.79737468,119010.0,119000.0,0.3119904]
[1753697229742,1.54553044,119010.0,119000.0,0.3119904]
[1753697230640,1.79737468,119010.0,119000.0,0.3119904]
[1753697231248,1.85788219,119010.0,119000.0,0.3119904]
[1753697231549,1.79737468,119010.0,119000.0,0.3119904]
[1753697232038,1.9656062,119010.0,119000.0,0.63117464]
[1753697232242,1.08936,119010.0,119000.0,0.88301888]
[1753697232541,1.69768,119010.0,119000.0,0.88301888]
[1753697232734,1.8657162,119010.0,119000.0,0.88301888]
[1753697233342,1.9061762,119010.0,119000.0,0.88301888]
[1753697235044,2.15802044,119010.0,119000.0,0.88301888]
[1753697237343,1.48614044,119010.0,119000.0,0.88301888]
[1753697237547,2.15798044,119010.0,119000.0,0.88301888]
[1753697239450,2.15798044,119010.0,119000.0,0.63117464]
[1753697241547,2.19286044,119010.0,119000.0,0.63117464]
[1753697241952,2.19286044,119010.0,119000.0,0.88301888]
[1753697242252,2.25336795,119010.0,119000.0,0.88301888]
[1753697242553,2.25328795,119010.0,119000.0,0.63117464]
[1753697242949,2.25328795,119010.0,119000.0,0.3793304]
[1753697243146,2.19278044,119010.0,119000.0,0.63117464]
[1753697245955,2.19278044,119010.0,119000.0,0.3793304]
[1753697246148,2.19278044,119010.0,119000.0,0.63117464]
[1753697246856,1.52102044,119010.0,119000.0,0.63117464]
[1753697247055,2.19270044,119010.0,119000.0,0.63117464]
[1753697248558,1.52102044,119010.0,119000.0,0.63117464]
[1753697248754,2.19270044,119010.0,119000.0,0.63117464]
[1753697251460,2.19266044,119010.0,119000.0,0.63117464]
[1753697253263,2.26828992,119010.0,119000.0,0.63117464]
[1753697253562,2.25304691,119010.0,119000.0,0.63117464]
[1753697255570,2.19262044,119010.0,119000.0,0.63117464]
[1753697256669,1.52102044,119010.0,119000.0,0.63117464]
[1753697256868,2.19258044,119010.0,119000.0,0.63117464]
[1753697258663,2.19258044,119010.0,119000.0,0.3793304]
[1753697258868,2.19258044,119010.0,119000.0,0.63117464]
[1753697262375,1.52102044,119010.0,119000.0,0.63117464]
[1753697262577,2.19254044,119010.0,119000.0,0.63117464]
[1753697264778,1.52102044,119010.0,119000.0,0.63117464]
[1753697265077,2.19250044,119010.0,119000.0,0.63117464]
[1753697265379,2.25292691,119010.0,119000.0,0.63117464]
[1753697267178,2.25292691,119010.0,119000.0,0.3793304]
[1753697267379,2.25288691,119010.0,119000.0,0.63117464]
[1753697271986,2.25280691,119010.0,119000.0,0.63117464]
[1753697277591,2.25280691,119010.0,119000.0,0.61098659]
[1753697278586,2.25272691,119010.0,119000.0,0.61098659]
[1753697278887,2.25272691,119010.0,119000.0,0.35914235]
[1753697279088,2.19230044,119010.0,119000.0,0.31794235]
[1753697279393,2.19230044,119010.0,119000.0,0.56978659]
[1753697280394,2.19230044,119010.0,119000.0,0.31794235]
[1753697280590,2.19230044,119010.0,119000.0,0.56978659]
[1753697281490,2.19226044,119010.0,119000.0,0.60906659]
[1753697282392,1.52102044,119010.0,119000.0,0.60906659]
[1753697282598,2.19226044,119010.0,119000.0,0.35722235]
[1753697282797,2.19226044,119010.0,119000.0,0.60906659]
[1753697283395,2.25268691,119010.0,119000.0,0.60906659]
[1753697284797,1.58144691,119010.0,119000.0,0.60906659]
[1753697285002,2.25264691,119010.0,119000.0,0.60906659]
[1753697285497,1.25264691,119010.0,119000.0,0.60906659]
[1753697288298,1.19222044,119010.0,119000.0,0.60906659]
[1753697288797,1.26784992,119010.0,119000.0,0.60906659]
[1753697291498,1.19222044,119010.0,119000.0,0.60906659]
[1753697293396,1.25268855,119010.0,119000.0,0.60906659]
[1753697294702,1.25268855,119010.0,119000.0,0.35722235]
[1753697295003,1.25268855,119010.0,119000.0,0.60906659]
[1753697297304,0.60574855,119010.0,119000.0,0.60906659]
[1753697297498,1.27674855,119010.0,119000.0,0.60906659]
[1753697298705,1.27674855,119010.0,119000.0,0.35722235]
[1753697298903,1.27674855,119010.0,119000.0,0.60906659]
[1753697300208,1.27674855,119010.0,119000.0,0.35722235]
[1753697300407,1.27674855,119010.0,119000.0,0.60906659]
[1753697300608,1.27674855,119010.0,119000.0,0.35722235]
[1753697302414,1.27674855,119010.0,119000.0,0.60906659]
[1753697302823,1.27674855,119010.0,119000.0,0.35722235]
[1753697303523,1.27674855,119010.0,119000.0,0.60906659]
[1753697304022,1.27674855,119010.0,119000.0,0.35722235]
[1753697304319,1.27674855,119010.0,119000.0,0.60906659]
[1753697305226,1.27674855,119010.0,119000.0,0.35722235]
[1753697306824,1.27674855,119010.0,119000.0,0.02087195]
[1753697307021,1.46812468,119010.0,119000.0,0.002]
[1753697307425,1.54370982,119010.0,119000.0,0.002]
[1753697307629,0.79538888,119000.0,118990.0,0.2695]
[1753697308025,0.79538888,119000.0,118990.0,0.4375645]
[1753697308230,0.79538888,119000.0,118990.0,0.2695]
[1753697308732,0.2549345,118990.0,118980.0,0.4472061]
[1753697308932,1.21439874,118990.0,118980.0,0.4472061]
[1753697310030,1.2813368,118990.0,118980.0,0.4472061]
[1753697310231,1.2823368,118990.0,118980.0,0.4472061]
[1753697310433,1.29074607,118990.0,118980.0,0.4472061]
[1753697310633,1.29274607,118990.0,118980.0,0.4051868]
[1753697310828,1.29274607,118990.0,118980.0,0.1951]
[1753697311033,0.2163086,118980.0,118970.0,0.4472256]
[1753697311233,0.79541708,118980.0,118970.0,0.4472256]
[1753697313123,0.54357284,118980.0,118970.0,0.69906984]
[1753697313323,0.54457284,118980.0,118970.0,0.69906984]
[1753697315135,0.2927286,118980.0,118970.0,0.69906984]
[1753697315338,0.54457284,118980.0,118970.0,0.70759808]
[1753697316137,0.2927286,118980.0,118970.0,0.70759808]
[1753697316331,0.75871,118980.0,118970.0,0.95944232]
[1753697316536,0.9267886,118980.0,118970.0,0.95944232]
[1753697318036,0.9267886,118980.0,118970.0,0.70759808]
[1753697318938,0.75871,118980.0,118970.0,0.70759808]
[1753697319239,0.67184,118980.0,118970.0,0.95944232]
[1753697319434,0.001,118980.0,118970.0,0.95944232]
[1753697320542,0.001,118980.0,118970.0,1.22894232]
[1753697322846,0.001,118980.0,118970.0,1.89974232]
[1753697324846,0.001,118980.0,118970.0,1.64789808]
[1753697332751,0.001,118980.0,118970.0,1.89974232]
[1753697334952,0.001,118980.0,118970.0,1.64789808]
[1753697336051,0.27626424,118980.0,118970.0,0.72525384]
[1753697336258,0.27626424,118980.0,118970.0,0.97709808]
[1753697336259,0.31131424,118980.0,118970.0,0.97709808]
[1753697339451,0.33653424,118980.0,118970.0,0.97709808]
[1753697340159,0.39698929,118980.0,118970.0,0.97709808]
[1753697340656,0.39698929,118980.0,118970.0,1.65225808]
[1753697341464,0.08487505,118980.0,118970.0,1.65225808]
[1753697341658,0.06145505,118980.0,118970.0,1.65225808]
[1753697341956,0.06145505,118980.0,118970.0,1.65217808]
[1753697342558,0.06145505,118980.0,118970.0,1.90402232]
[1753697342756,0.10656181,118990.0,118980.0,0.3641186]
[1753697342961,0.10656181,118990.0,118980.0,1.11965132]
[1753697343260,0.10656181,118990.0,118980.0,0.86780708]
[1753697343458,0.06693806,118990.0,118980.0,0.86780708]
[1753697343652,0.9268205,119000.0,118990.0,0.2448945]
[1753697343857,0.9268205,119000.0,118990.0,0.61594874]
[1753697344260,0.75877,119000.0,118990.0,0.61594874]
[1753697344762,0.76077,119000.0,118990.0,0.70002216]
[1753697346161,0.9288204,119000.0,118990.0,0.3641045]
[1753697346361,0.9288204,119000.0,118990.0,0.70002216]
[1753697346565,0.9658404,119000.0,118990.0,0.70002216]
[1753697348662,0.9658404,119000.0,118990.0,0.3641045]
[1753697350267,0.9668404,119000.0,118990.0,0.3641045]
[1753697352769,1.02727436,119000.0,118990.0,0.3641045]
[1753697355072,1.36319202,119000.0,118990.0,0.3641045]
[1753697359183,1.02727436,119000.0,118990.0,0.3641045]
[1753697359384,1.36319202,119000.0,118990.0,0.3641045]
[1753697359789,1.02727436,119000.0,118990.0,0.3641045]
[1753697359988,1.36319202,119000.0,118990.0,0.3641045]
[1753697360783,1.36319202,119000.0,118990.0,0.1680645]
[1753697361388,1.30275806,119000.0,118990.0,0.1680645]
[1753697361688,1.30275806,119000.0,118990.0,0.2050345]
[1753697362479,1.36318898,119000.0,118990.0,0.2050345]
[1753697363880,1.44721948,119000.0,118990.0,0.1680645]
[1753697364081,0.2166045,118990.0,118980.0,0.7593791]
[1753697364286,0.62378216,118990.0,118980.0,0.7593791]
[1753697364487,0.62378216,118990.0,118980.0,0.7215091]
[1753697364686,0.62378216,118990.0,118980.0,0.6005891]
[1753697364891,0.60033589,118990.0,118980.0,0.92493957]
[1753697365084,0.53990497,118990.0,118980.0,0.97354957]
[1753697365290,0.53990497,118990.0,118980.0,1.01141957]
[1753697365590,0.54090497,118990.0,118980.0,1.01141957]
[1753697365895,0.54190497,118990.0,118980.0,1.01141957]
[1753697366600,0.54190497,118990.0,118980.0,0.7593791]
[1753697366791,0.54190497,118990.0,118980.0,1.01141957]
[1753697367198,0.60976547,118990.0,118980.0,1.01141957]
[1753697367796,0.60976547,118990.0,118980.0,0.74191957]
[1753697369997,0.60976547,118990.0,118980.0,0.4898791]
[1753697370297,0.60976547,118990.0,118980.0,0.74191957]
[1753697371498,0.60976547,118990.0,118980.0,0.4478605]
[1753697371998,0.60976547,118990.0,118980.0,0.4058432]
[1753697372898,0.60976547,118990.0,118980.0,0.2760732]
[1753697373393,0.60976547,118990.0,118980.0,0.3193632]
[1753697373593,0.60976547,118990.0,118980.0,0.3679732]
[1753697373994,0.67019639,118990.0,118980.0,0.4058432]
[1753697374992,0.60976547,118990.0,118980.0,0.10928]
[1753697375202,0.60976547,118990.0,118980.0,0.2340686]
[1753697375595,0.60976547,118990.0,118980.0,0.2773586]
[1753697377303,0.60976547,118990.0,118980.0,0.10928]
[1753697377703,0.60976547,118990.0,118980.0,0.2773585]
[1753697378704,0.67019639,118990.0,118980.0,0.2773585]
[1753697379404,0.67019639,118990.0,118980.0,0.3005885]
[1753697381008,0.60976547,118990.0,118980.0,0.3005885]
[1753697381508,0.67019639,118990.0,118980.0,0.3259685]
[1753697381710,0.67019639,118990.0,118980.0,0.3638385]
[1753697382210,0.60976547,118990.0,118980.0,0.3638385]
[1753697383606,0.67019639,118990.0,118980.0,0.3638385]
[1753697386309,0.38243592,118990.0,118980.0,0.86791944]
[1753697386515,1.02029592,118990.0,118980.0,0.86791944]
[1753697386915,1.30918639,118990.0,118980.0,0.61587897]
[1753697387116,1.34654639,118990.0,118980.0,0.61587897]
[1753697387415,0.67314639,118990.0,118980.0,0.61587897]
[1753697387612,1.34662639,118990.0,118980.0,0.61587897]
[1753697388710,1.34662639,118990.0,118980.0,0.3638385]
[1753697390719,1.28619547,118990.0,118980.0,0.3638385]
[1753697391815,1.53823594,118990.0,118980.0,0.03697]
[1753697392022,0.2900586,118980.0,118970.0,0.4174654]
[1753697392226,0.85459284,118980.0,118970.0,0.4416154]
[1753697392417,0.2900727,118970.0,118960.0,0.4416381]
[1753697392617,1.53124694,118970.0,118960.0,0.4416381]
[1753697392821,1.21875317,118970.0,118960.0,0.3575968]
[1753697393420,1.29433831,118970.0,118960.0,0.3575968]
[1753697393621,1.27919632,118970.0,118960.0,0.3575968]
[1753697394220,1.21875317,118970.0,118960.0,0.3585968]
[1753697394922,1.30290963,118970.0,118960.0,0.3585968]
[1753697398627,0.9667127,118970.0,118960.0,0.3585968]
[1753697398818,1.30290963,118970.0,118960.0,0.3585968]
[1753697399014,1.311254,118970.0,118960.0,0.3585968]
[1753697399827,1.30290963,118970.0,118960.0,0.3585968]
[1753697404539,1.30290963,118970.0,118960.0,0.1691069]
[1753697404738,1.31116463,118970.0,118960.0,0.1691069]
[1753697406540,1.31116463,118970.0,118960.0,0.2033969]
[1753697407940,1.37160778,118970.0,118960.0,0.2033969]
[1753697409435,1.03541085,118970.0,118960.0,0.2033969]
[1753697409636,1.37160778,118970.0,118960.0,0.2457269]
[1753697411139,1.03541085,118970.0,118960.0,0.2457269]
[1753697411343,1.37160778,118970.0,118960.0,0.2457269]
[1753697411843,1.37160778,118970.0,118960.0,0.1691069]
[1753697412243,1.03541085,118970.0,118960.0,0.1691069]
[1753697412444,1.37160778,118970.0,118960.0,0.2031869]
[1753697412843,1.31116463,118970.0,118960.0,0.2031869]
[1753697413043,1.38674977,118970.0,118960.0,0.2447569]
[1753697413436,1.31116463,118970.0,118960.0,0.2447569]
[1753697413637,1.38674977,118970.0,118960.0,0.2447569]
[1753697414343,1.31116463,118970.0,118960.0,0.2447569]
[1753697414538,1.31116463,118970.0,118960.0,0.2031869]
[1753697414739,1.47928648,118970.0,118960.0,0.2031869]
[1753697415844,1.22712709,118970.0,118960.0,0.2447569]
[1753697417243,1.47928648,118970.0,118960.0,0.2447569]
[1753697417443,1.22712709,118970.0,118960.0,0.2447569]
[1753697417646,1.28750139,118970.0,118960.0,0.2447569]
[1753697419447,1.28750139,118970.0,118960.0,0.2708869]
[1753697420249,1.22712709,118970.0,118960.0,0.2708869]
[1753697420545,1.22712709,118970.0,118960.0,0.25069066]
[1753697422441,1.30271223,118970.0,118960.0,0.25069066]
[1753697423242,1.22712709,118970.0,118960.0,0.25069066]
[1753697423642,1.33235913,118970.0,118960.0,0.27475066]
[1753697424238,0.2830069,118960.0,118950.0,0.2862518]
[1753697424441,0.86282061,118960.0,118950.0,0.3539518]
[1753697424640,0.86282061,118960.0,118950.0,0.4020618]
[1753697424847,0.86282061,118960.0,118950.0,0.4387918]
[1753697425248,0.86282061,118960.0,118950.0,0.4397918]
[1753697425447,0.86282061,118960.0,118950.0,0.4407918]
[1753697426549,0.86282061,118960.0,118950.0,0.69295119]
[1753697426946,0.86282061,118960.0,118950.0,0.4407918]
[1753697427248,0.86286061,118960.0,118950.0,0.4407918]
[1753697427848,0.86286061,118960.0,118950.0,0.69295119]
[1753697428349,0.86286061,118960.0,118950.0,0.4407918]
[1753697428552,0.86286061,118960.0,118950.0,0.69295119]
[1753697433557,0.92327005,118960.0,118950.0,0.69295119]
[1753697433754,0.84777512,118960.0,118950.0,0.69295119]
[1753697434156,0.84777512,118960.0,118950.0,0.4407918]
[1753697434755,0.84777512,118960.0,118950.0,0.69295119]
[1753697437759,0.59561573,118960.0,118950.0,0.69295119]
[1753697439363,0.59561573,118960.0,118950.0,0.4407918]
[1753697439564,0.59561573,118960.0,118950.0,0.69295119]
[1753697440161,0.53520629,118960.0,118950.0,0.69295119]
[1753697441764,0.78736568,118960.0,118950.0,0.4407918]
[1753697442469,0.84777512,118960.0,118950.0,0.4407918]
[1753697449072,0.84777512,118960.0,118950.0,0.69295119]
[1753697452371,0.84777512,118960.0,118950.0,0.4407918]
[1753697452572,0.84777512,118960.0,118950.0,0.69295119]
[1753697453871,0.86286061,118960.0,118950.0,0.69295119]
[1753697454072,0.61070122,118960.0,118950.0,0.69295119]
[1753697454770,0.24364173,118960.0,118950.0,0.96354666]
[1753697455074,0.8423068,118960.0,118950.0,0.96354666]
[1753697455271,0.8423068,118960.0,118950.0,0.71138727]
[1753697456670,0.44339619,118960.0,118950.0,0.71138727]
[1753697458878,0.47926619,118960.0,118950.0,0.71138727]
[1753697459681,0.53974537,118960.0,118950.0,0.71138727]
[1753697461079,0.88465262,118970.0,118950.0,0.79544607]
[1753697461276,0.92798262,118970.0,118960.0,0.85727568]
[1753697461482,1.0878269,118970.0,118960.0,0.85727568]
[1753697462180,1.0458007,118970.0,118960.0,0.85727568]
[1753697463083,1.0586207,118970.0,118960.0,0.85727568]
[1753697463380,1.10057983,118970.0,118960.0,0.85827568]
[1753697463880,1.0250849,118970.0,118960.0,0.85827568]
[1753697465882,0.9830587,118970.0,118960.0,0.85827568]
[1753697467187,0.9745683,118970.0,118960.0,0.85827568]
[1753697471791,0.01282,118970.0,118960.0,0.85827568]
[1753697471994,0.3582072,118970.0,118960.0,0.98434958]
[1753697472198,0.3941672,118970.0,118960.0,0.98434958]
[1753697473692,0.45462176,118970.0,118960.0,0.98434958]
[1753697473887,0.46029176,118970.0,118960.0,0.98434958]
[1753697474099,0.49184176,118970.0,118960.0,0.98434958]
[1753697474298,0.34375346,118970.0,118960.0,0.98434958]
[1753697476199,0.34375346,118970.0,118960.0,1.65766958]
[1753697477802,1.10749381,118980.0,118960.0,1.65766958]
[1753697478000,1.27557241,118980.0,118970.0,0.66851209]
[1753697478702,0.94791809,118980.0,118970.0,0.66851209]
[1753697478894,1.20007748,118980.0,118970.0,0.66851209]
[1753697479803,1.20007748,118980.0,118970.0,0.4163527]
[1753697480105,1.20007748,118980.0,118970.0,0.66851209]
[1753697481004,1.20107748,118980.0,118970.0,0.66851209]
[1753697481302,1.20207748,118980.0,118970.0,0.66851209]
[1753697483108,0.45456721,118980.0,118970.0,0.71053479]
[1753697483304,1.02205924,118980.0,118970.0,0.66851209]
[1753697483608,1.31624063,118980.0,118970.0,0.66851209]
[1753697484404,1.32475531,118980.0,118970.0,0.66851209]
[1753697485107,1.07259592,118980.0,118970.0,0.66851209]
[1753697487806,1.07263592,118980.0,118970.0,0.66851209]
[1753697488507,1.07263592,118980.0,118970.0,0.50041939]
[1753697488703,0.7826781,118990.0,118970.0,0.24826]
[1753697488898,1.20290199,118990.0,118980.0,0.55194878]
[1753697489499,0.95918003,118990.0,118980.0,0.55194878]
[1753697490709,0.95918003,118990.0,118980.0,0.60549878]
[1753697490910,0.96018003,118990.0,118980.0,0.63572878]
[1753697491611,0.96018003,118990.0,118980.0,0.71416878]
[1753697491809,0.96118003,118990.0,118980.0,0.75257878]
[1753697492211,0.96118003,118990.0,118980.0,0.92065738]
[1753697493209,0.28838003,118990.0,118980.0,0.92065738]
[1753697493511,0.28838003,118990.0,118980.0,1.42525878]
[1753697494208,1.05088389,119000.0,118980.0,1.42525878]
[1753697494515,1.30297839,119000.0,118990.0,0.29978939]
[1753697495109,1.47105039,119000.0,118990.0,0.29978939]
[1753697495405,1.47966488,119000.0,118990.0,0.29978939]
[1753697495597,1.31159288,119000.0,118990.0,0.29978939]
[1753697495803,1.48066488,119000.0,118990.0,0.29978939]
[1753697496704,1.22854549,119000.0,118990.0,0.29978939]
[1753697496909,1.48070488,119000.0,118990.0,0.29978939]
[1753697497710,1.31263288,119000.0,118990.0,0.29978939]
[1753697500102,1.31263288,119000.0,118990.0,0.04763]
[1753697500306,1.31263288,119000.0,118990.0,0.29978939]
[1753697502212,1.41535288,119000.0,118990.0,0.29978939]
[1753697502612,0.702767,119000.0,118990.0,0.29978939]
[1753697502816,0.702767,119000.0,118990.0,0.04763]
[1753697502817,0.74470995,119000.0,118990.0,0.04763]
[1753697503014,1.03888424,119000.0,118990.0,0.04763]
[1753697503210,1.08089914,119000.0,118990.0,0.29978939]
[1753697503412,1.15650111,119000.0,118990.0,0.29978939]
[1753697503805,0.90434172,119000.0,118990.0,0.29978939]
[1753697504012,0.93458657,119000.0,118990.0,0.29978939]
[1753697504310,0.2248045,118990.0,118980.0,1.02521939]
[1753697504510,0.33064711,118990.0,118980.0,1.02521939]
[1753697505215,0.2248045,118990.0,118980.0,1.02521939]
[1753697505414,0.37513599,118990.0,118980.0,0.9894588]
[1753697505714,0.37513599,118990.0,118980.0,1.24161819]
[1753697506112,0.37513599,118990.0,118980.0,1.29026819]
[1753697506311,0.2248045,118990.0,118980.0,1.29026819]
[1753697507313,0.2248045,118990.0,118980.0,1.27054652]
[1753697507510,0.2248045,118990.0,118980.0,1.24319913]
[1753697507714,0.2248445,118990.0,118980.0,1.24319913]
[1753697507913,0.1989545,118990.0,118980.0,1.24319913]
[1753697508516,0.33021812,118990.0,118980.0,1.24319913]
[1753697513318,0.33021812,118990.0,118980.0,1.22347746]
[1753697513518,0.42558812,118990.0,118980.0,1.26905887]
[1753697514218,0.42558812,118990.0,118980.0,1.15546201]
[1753697515617,0.42558812,118990.0,118980.0,1.32630201]
[1753697516920,0.53143254,118990.0,118980.0,1.32630201]
[1753697521020,0.42558812,118990.0,118980.0,1.32630201]
[1753697521422,0.53143254,118990.0,118980.0,1.32630201]
[1753697521825,0.53143254,118990.0,118980.0,0.86727878]
[1753697522025,0.53143254,118990.0,118980.0,1.53959878]
[1753697522826,0.78359193,118990.0,118980.0,1.53959878]
[1753697523425,0.78359193,118990.0,118980.0,1.28743939]
[1753697523626,0.78359193,118990.0,118980.0,1.53959878]
[1753697525025,0.53143254,118990.0,118980.0,1.53959878]
[1753697525227,0.78359193,118990.0,118980.0,1.53959878]
[1753697525427,0.67774751,118990.0,118980.0,1.53959878]
[1753697526723,0.42558812,118990.0,118980.0,1.53959878]